bitfinex/quotes_BTCUSD_20250607
["timestamp","ask_amount","ask_price","bid_price","bid_amount"]
[1749328769315,0.03651499,105960.0,105950.0,0.86766874]
[1749328769825,0.03651539,105960.0,105950.0,0.86766874]
[1749328770440,0.01881431,105960.0,105950.0,0.86766874]
[1749328770755,0.03651538,105960.0,105950.0,0.86766874]
[1749328770875,0.01881431,105960.0,105950.0,0.86766874]
[1749328771276,0.03651535,105960.0,105950.0,0.86766874]
[1749328771892,0.03651567,105960.0,105950.0,0.86766874]
[1749328772564,0.01881431,105960.0,105950.0,0.86766874]
[1749328772779,0.03651567,105960.0,105950.0,0.86766874]
[1749328773713,0.01881431,105960.0,105950.0,0.86766874]
[1749328774131,0.03651587,105960.0,105950.0,0.86766874]
[1749328775158,0.03651578,105960.0,105950.0,0.86766874]
[1749328776005,0.03651576,105960.0,105950.0,0.86766874]
[1749328776220,0.01881431,105960.0,105950.0,0.86766874]
[1749328776427,0.03651585,105960.0,105950.0,0.86766874]
[1749328776904,0.03651588,105960.0,105950.0,0.86766874]
[1749328778071,0.03651602,105960.0,105950.0,0.86766874]
[1749328778277,0.01881431,105960.0,105950.0,0.86766874]
[1749328778925,0.036516,105960.0,105950.0,0.26599894]
[1749328779126,0.03651602,105960.0,105950.0,0.26599894]
[1749328779337,0.04595284,105960.0,105950.0,0.23595809]
[1749328779546,0.05358819,105960.0,105950.0,0.23595809]
[1749328779972,0.06185288,105960.0,105950.0,0.32279809]
[1749328780177,0.07128986,105960.0,105950.0,0.32279809]
[1749328780588,0.0535881,105960.0,105950.0,0.44279809]
[1749328781023,0.06302526,105960.0,105950.0,0.44279809]
[1749328781467,0.0535881,105960.0,105950.0,0.44279809]
[1749328781678,0.08072733,105960.0,105950.0,0.44279809]
[1749328781893,0.07129017,105960.0,105950.0,0.44279809]
[1749328782102,0.08072733,105960.0,105950.0,0.44279809]
[1749328782338,0.0807276,105960.0,105950.0,0.44279809]
[1749328782575,0.07129044,105960.0,105950.0,0.44279809]
[1749328782791,0.07129044,105960.0,105950.0,0.35595809]
[1749328783085,0.08072759,105960.0,105950.0,0.35595809]
[1749328783628,0.07129043,105960.0,105950.0,0.35595809]
[1749328783877,0.07129043,105960.0,105950.0,0.44279809]
[1749328784091,0.07129088,105960.0,105950.0,0.44279809]
[1749328784310,0.06302526,105960.0,105950.0,0.44279809]
[1749328784530,0.0535881,105960.0,105950.0,0.44279809]
[1749328784750,0.08072795,105960.0,105950.0,0.44279809]
[1749328784970,0.06302517,105960.0,105950.0,0.44279809]
[1749328785222,0.08072795,105960.0,105950.0,0.44279809]
[1749328785854,0.08072795,105960.0,105950.0,0.35595809]
[1749328786073,0.0901652,105960.0,105950.0,0.35595809]
[1749328786279,0.09016695,105960.0,105950.0,0.35595809]
[1749328786503,0.07246233,105960.0,105950.0,0.35595809]
[1749328786913,0.08073002,105960.0,105950.0,0.35595809]
[1749328787947,0.08072589,105960.0,105950.0,0.35595809]
[1749328788134,0.06302517,105960.0,105950.0,0.35595809]
[1749328788541,0.08072588,105960.0,105950.0,0.35595809]
[1749328788755,0.08189976,105960.0,105950.0,0.35595809]
[1749328788961,0.09612588,105960.0,105950.0,0.35595809]
[1749328789163,0.10556322,105960.0,105950.0,0.35595809]
[1749328789382,0.29431431,105960.0,105950.0,0.32764447]
[1749328789593,0.29431431,105960.0,105950.0,0.34652084]
[1749328789798,0.3037495,105960.0,105950.0,0.35595871]
[1749328789974,0.27661414,105960.0,105950.0,0.34652084]
[1749328790188,0.29431252,105960.0,105950.0,0.22652084]
[1749328790405,0.29431252,105960.0,105950.0,0.31336084]
[1749328791071,0.27661414,105960.0,105950.0,0.31336084]
[1749328791279,0.28487545,105960.0,105950.0,0.31336084]
[1749328791486,0.2660002,105960.0,105950.0,0.08684]
[1749328791714,0.26600054,105960.0,105950.0,0.08684]
[1749328791919,0.2483023,105960.0,105950.0,0.28504669]
[1749328792126,0.2483023,105960.0,105950.0,0.29448501]
[1749328792318,0.26600065,105960.0,105950.0,0.29448501]
[1749328792724,0.26600065,105960.0,105950.0,0.30392324]
[1749328793500,0.26599675,105960.0,105950.0,0.30392324]
[1749328794841,0.26599469,105960.0,105950.0,0.30392324]
[1749328795415,0.2483023,105960.0,105950.0,0.30392324]
[1749328795594,0.26599469,105960.0,105950.0,0.30392324]
[1749328795797,0.2483023,105960.0,105950.0,0.31336138]
[1749328796005,0.26599415,105960.0,105950.0,0.32279943]
[1749328797278,0.2483023,105960.0,105950.0,0.60855943]
[1749328797647,0.265993,105960.0,105950.0,0.60855943]
[1749328798073,0.2659926,105960.0,105950.0,0.60855943]
[1749328798276,0.2659926,105960.0,105950.0,0.60855898]
[1749328798473,0.26599208,105960.0,105950.0,0.60855898]
[1749328799074,0.2483023,105960.0,105950.0,0.60855898]
[1749328799480,0.08667886,105960.0,105950.0,0.60855853]
[1749328800259,0.09611575,105960.0,105950.0,0.60855853]
[1749328800719,0.09611575,105960.0,105950.0,0.60855809]
[1749328801780,0.08667832,105960.0,105950.0,0.60855809]
[1749328801983,0.07127832,105960.0,105950.0,0.60855809]
[1749328802341,0.08071566,105960.0,105950.0,0.60855809]
[1749328802774,0.06302588,105960.0,105950.0,0.60855809]
[1749328803153,0.08071623,105960.0,105950.0,0.60855809]
[1749328803994,0.06302588,105960.0,105950.0,0.60855809]
[1749328804425,0.08071623,105960.0,105950.0,0.60855809]
[1749328804597,0.07127889,105960.0,105950.0,0.60855809]
[1749328804806,0.07128005,105960.0,105950.0,0.60855809]
[1749328806137,0.0712804,105960.0,105950.0,0.60855809]
[1749328806365,0.05358854,105960.0,105950.0,0.60855809]
[1749328806618,0.0712825,105960.0,105950.0,0.60855809]
[1749328807652,0.05358854,105960.0,105950.0,0.60855809]
[1749328808147,0.07128291,105960.0,105950.0,0.60855809]
[1749328808745,0.0712828,105960.0,105950.0,0.60855809]
[1749328809131,0.08071943,105960.0,105950.0,0.60855809]
[1749328809684,0.08072004,105960.0,105950.0,0.60855809]
[1749328809887,0.06302517,105960.0,105950.0,0.60855809]
[1749328810060,0.08071986,105960.0,105950.0,0.60855809]
[1749328811156,0.06302517,105960.0,105950.0,0.60855809]
[1749328811365,0.0807196,105960.0,105950.0,0.60855809]
[1749328811572,0.08072011,105960.0,105950.0,0.60855809]
[1749328812791,0.08072255,105960.0,105950.0,0.60855809]
[1749328813246,0.06302517,105960.0,105950.0,0.60855809]
[1749328813455,0.08072285,105960.0,105950.0,0.60855809]
[1749328815325,0.08072721,105960.0,105950.0,0.60855809]
[1749328815874,0.09016455,105960.0,105950.0,0.60855809]
[1749328816052,0.08072721,105960.0,105950.0,0.60855809]
[1749328816699,0.08072708,105960.0,105950.0,0.60855809]
[1749328817296,0.08072739,105960.0,105950.0,0.60855809]
[1749328818139,0.07246251,105960.0,105950.0,0.60855809]
[1749328818349,0.09016457,105960.0,105950.0,0.60855809]
[1749328819683,0.09016492,105960.0,105950.0,0.60855809]
[1749328820317,0.07246251,105960.0,105950.0,0.60855809]
[1749328820565,0.09016473,105960.0,105950.0,0.60855809]
[1749328821070,0.07246251,105960.0,105950.0,0.60855809]
[1749328821274,0.09016473,105960.0,105950.0,0.60855809]
[1749328821570,0.09016463,105960.0,105950.0,0.60855809]
[1749328821927,0.07246251,105960.0,105950.0,0.60855809]
[1749328822134,0.09016463,105960.0,105950.0,0.60855809]
[1749328822736,0.09016456,105960.0,105950.0,0.60855809]
[1749328823368,0.09016454,105960.0,105950.0,0.60855809]
[1749328824752,0.09016452,105960.0,105950.0,0.60855809]
[1749328825621,0.09016457,105960.0,105950.0,0.60855809]
[1749328825829,0.07246251,105960.0,105950.0,0.60855809]
[1749328826029,0.09016457,105960.0,105950.0,0.60855809]
[1749328829177,0.09016496,105960.0,105950.0,0.60855809]
[1749328830053,0.0901651,105960.0,105950.0,0.60855809]
[1749328830457,0.09960275,105960.0,105950.0,0.60855809]
[1749328830884,0.09960308,105960.0,105950.0,0.60855809]
[1749328831573,0.43960308,105960.0,105950.0,0.60855809]
[1749328832196,0.43960312,105960.0,105950.0,0.60855809]
[1749328832712,0.42189994,105960.0,105950.0,0.60855809]
[1749328832862,0.43960391,105960.0,105950.0,0.60855809]
[1749328833064,0.42189994,105960.0,105950.0,0.60855809]
[1749328833300,0.43960391,105960.0,105950.0,0.60855809]
[1749328833722,0.61891766,105960.0,105950.0,0.58968234]
[1749328834311,0.62835534,105960.0,105950.0,0.58968234]
[1749328836034,0.61065121,105960.0,105950.0,0.58968234]
[1749328836240,0.62835625,105960.0,105950.0,0.58968234]
[1749328836439,0.61065121,105960.0,105950.0,0.58968234]
[1749328836643,0.62835631,105960.0,105950.0,0.58968234]
[1749328837312,0.62835747,105960.0,105950.0,0.58968234]
[1749328838148,0.61065121,105960.0,105950.0,0.58968234]
[1749328838368,0.62835747,105960.0,105950.0,0.58968234]
[1749328838580,0.61065121,105960.0,105950.0,0.58968234]
[1749328838791,0.62835747,105960.0,105950.0,0.58968234]
[1749328839219,0.61065121,105960.0,105950.0,0.58968234]
[1749328839538,0.62835771,105960.0,105950.0,0.58968234]
[1749328840195,0.61065121,105960.0,105950.0,0.58968234]
[1749328840402,0.62835771,105960.0,105950.0,0.58968234]
[1749328841585,0.62835757,105960.0,105950.0,0.58968234]
[1749328841722,0.60121423,105960.0,105950.0,0.58968234]
[1749328841941,0.61892059,105960.0,105950.0,0.58968234]
[1749328842161,0.60121423,105960.0,105950.0,0.58968234]
[1749328842314,0.6189206,105960.0,105950.0,0.58968234]
[1749328843499,0.60121423,105960.0,105950.0,0.58968234]
[1749328843937,0.61892057,105960.0,105950.0,0.58968234]
[1749328845051,0.60121423,105960.0,105950.0,0.58968234]
[1749328845252,0.61892057,105960.0,105950.0,0.58968234]
[1749328845844,0.61892054,105960.0,105950.0,0.58968234]
[1749328846048,0.60121423,105960.0,105950.0,0.58968234]
[1749328846218,0.60948338,105960.0,105950.0,0.58024447]
[1749328846642,0.60948337,105960.0,105950.0,0.58024447]
[1749328846899,0.59177707,105960.0,105950.0,0.58968243]
[1749328847100,0.60948338,105960.0,105950.0,0.58968243]
[1749328847311,0.59177707,105960.0,105950.0,0.58968243]
[1749328847512,0.59358338,105960.0,105950.0,0.58968243]
[1749328847713,0.57587707,105960.0,105950.0,0.5991203]
[1749328847894,0.59358338,105960.0,105950.0,0.5991203]
[1749328849464,0.57587707,105960.0,105950.0,0.5991203]
[1749328849881,0.59358347,105960.0,105950.0,0.5991203]
[1749328850080,0.57587707,105960.0,105950.0,0.5991203]
[1749328850260,0.59358346,105960.0,105950.0,0.5991203]
[1749328850408,0.59358354,105960.0,105950.0,0.5991203]
[1749328851704,0.57587707,105960.0,105950.0,0.5991203]
[1749328852306,0.59358374,105960.0,105950.0,0.5991203]
[1749328853328,0.57587707,105960.0,105950.0,0.5991203]
[1749328853727,0.59358406,105960.0,105950.0,0.5991203]
[1749328853950,0.57587707,105960.0,105950.0,0.5991203]
[1749328854152,0.59358405,105960.0,105950.0,0.5991203]
[1749328855392,0.57587707,105960.0,105950.0,0.5991203]
[1749328855600,0.57587707,105960.0,105950.0,0.6145203]
[1749328855823,0.5935845,105960.0,105950.0,0.6145203]
[1749328856350,0.40483403,105960.0,105950.0,0.6145203]
[1749328856641,0.40487403,105960.0,105950.0,0.6145203]
[1749328857406,0.40487408,105960.0,105950.0,0.6145203]
[1749328858015,0.40487408,105960.0,105950.0,0.62395809]
[1749328858943,0.3871666,105960.0,105950.0,0.62395809]
[1749328859876,0.40487494,105960.0,105950.0,0.62395809]
[1749328860970,0.3871666,105960.0,105950.0,0.62395809]
[1749328861371,0.40487541,105960.0,105950.0,0.62395809]
[1749328861553,0.4048754,105960.0,105950.0,0.62395809]
[1749328862690,0.3871666,105960.0,105950.0,0.62395809]
[1749328862893,0.40487544,105960.0,105950.0,0.62395809]
[1749328863880,0.3871666,105960.0,105950.0,0.62395809]
[1749328864060,0.40487543,105960.0,105950.0,0.62395809]
[1749328864568,0.40487542,105960.0,105950.0,0.62395809]
[1749328865535,0.39543754,105960.0,105950.0,0.62395809]
[1749328865920,0.40487497,105960.0,105950.0,0.6145203]
[1749328866122,0.59362543,105960.0,105950.0,0.6145203]
[1749328866323,0.40487496,105960.0,105950.0,0.62395809]
[1749328866533,0.38716615,105960.0,105950.0,0.62395809]
[1749328866733,0.40487498,105960.0,105950.0,0.62395809]
[1749328868414,0.40487496,105960.0,105950.0,0.62395809]
[1749328869552,0.40487497,105960.0,105950.0,0.62395809]
[1749328869776,0.40487496,105960.0,105950.0,0.62395809]
[1749328870764,0.38716615,105960.0,105950.0,0.62395809]
[1749328870964,0.40487497,105960.0,105950.0,0.62395809]
[1749328871645,0.38716615,105960.0,105950.0,0.62395809]
[1749328871850,0.40487498,105960.0,105950.0,0.62395809]
[1749328872029,0.40487497,105960.0,105950.0,0.62395809]
[1749328872260,0.40487496,105960.0,105950.0,0.62395809]
[1749328872867,0.38716615,105960.0,105950.0,0.62395809]
[1749328873062,0.40487497,105960.0,105950.0,0.62395809]
[1749328873321,0.38716615,105960.0,105950.0,0.62395809]
[1749328873552,0.40487497,105960.0,105950.0,0.62395809]
[1749328874071,0.39543754,105960.0,105950.0,0.62395809]
[1749328874729,0.40487498,105960.0,105950.0,0.62395809]
[1749328875102,0.37890936,105960.0,105950.0,0.5991203]
[1749328875706,0.38718068,105960.0,105950.0,0.60855809]
[1749328876031,0.36947184,105960.0,105950.0,0.60855809]
[1749328876362,0.38718067,105960.0,105950.0,0.60855809]
[1749328879096,0.38718068,105960.0,105950.0,0.60855809]
[1749328879859,0.57593115,105960.0,105950.0,0.58968243]
[1749328880059,0.58536867,105960.0,105950.0,0.5991203]
[1749328880436,0.58536865,105960.0,105950.0,0.5991203]
[1749328880801,0.56765983,105960.0,105950.0,0.5991203]
[1749328881219,0.58536866,105960.0,105950.0,0.5991203]
[1749328881419,0.58536866,105960.0,105950.0,0.60855809]
[1749328881420,0.39661819,105960.0,105950.0,0.60855809]
[1749328881775,0.38718067,105960.0,105950.0,0.62415809]
[1749328882107,0.37774271,105960.0,105950.0,0.62415809]
[1749328882308,0.37774271,105960.0,105950.0,0.63985809]
[1749328882527,0.37774266,105960.0,105950.0,0.63985809]
[1749328882726,0.35886878,105960.0,105950.0,1.24152789]
[1749328882962,0.36830507,105960.0,105950.0,1.24152789]
[1749328883199,0.35886835,105960.0,105950.0,1.24152789]
[1749328883602,0.36830507,105960.0,105950.0,1.24152789]
[1749328883726,0.35886835,105960.0,105950.0,1.24152789]
[1749328883923,0.34116,105960.0,105950.0,1.24152789]
[1749328884131,0.35059672,105960.0,105950.0,1.24152789]
[1749328884576,0.37773355,105960.0,105950.0,1.24152789]
[1749328884779,0.37773357,105960.0,105950.0,1.24152789]
[1749328885023,0.37773357,105960.0,105950.0,0.63985809]
[1749328885227,0.36003362,105960.0,105950.0,0.63985809]
[1749328885518,0.36829403,105960.0,105950.0,0.63985809]
[1749328885734,0.36003362,105960.0,105950.0,0.63985809]
[1749328885931,0.37773093,105960.0,105950.0,0.63985809]
[1749328886457,0.36829403,105960.0,105950.0,0.63985809]
[1749328886675,0.37773093,105960.0,105950.0,0.63985809]
[1749328887080,0.37773084,105960.0,105950.0,0.63985809]
[1749328887281,0.36829403,105960.0,105950.0,0.63985809]
[1749328887695,0.35059672,105960.0,105950.0,0.63985809]
[1749328887902,0.36829226,105960.0,105950.0,0.63985809]
[1749328888181,0.35885553,105960.0,105950.0,0.63985809]
[1749328888412,0.36829225,105960.0,105950.0,0.63985809]
[1749328888641,0.35885553,105960.0,105950.0,0.63985809]
[1749328888862,0.36829234,105960.0,105950.0,0.63985809]
[1749328889078,0.36829143,105960.0,105950.0,0.63985809]
[1749328890865,0.35059681,105960.0,105950.0,0.63985809]
[1749328891075,0.36829089,105960.0,105950.0,0.63985809]
[1749328891481,0.35059681,105960.0,105950.0,0.63985809]
[1749328891894,0.36829062,105960.0,105950.0,0.63985809]
[1749328893093,0.36829033,105960.0,105950.0,0.63985809]
[1749328893314,0.37772731,105960.0,105950.0,0.63985809]
[1749328894367,0.37772744,105960.0,105950.0,0.63985809]
[1749328894582,0.37772747,105960.0,105950.0,0.63985809]
[1749328894798,0.37772745,105960.0,105950.0,0.63985809]
[1749328895316,0.36829047,105960.0,105950.0,0.63985809]
[1749328895500,0.37772745,105960.0,105950.0,0.63985809]
[1749328896422,0.36003379,105960.0,105950.0,0.63985809]
[1749328896630,0.37772797,105960.0,105950.0,0.63985809]
[1749328897005,0.37772843,105960.0,105950.0,0.63985809]
[1749328897442,0.37772842,105960.0,105950.0,0.63985809]
[1749328897751,0.36003379,105960.0,105950.0,0.63985809]
[1749328897958,0.37772854,105960.0,105950.0,0.63985809]
[1749328899201,0.35059681,105960.0,105950.0,0.63985809]
[1749328899421,0.37772853,105960.0,105950.0,0.63985809]
[1749328899641,0.36003379,105960.0,105950.0,0.63985809]
[1749328899969,0.37772853,105960.0,105950.0,0.63985809]
[1749328900315,0.36829155,105960.0,105950.0,0.63985809]
[1749328900872,0.36829221,105960.0,105950.0,0.63985809]
[1749328901088,0.36003379,105960.0,105950.0,0.63985809]
[1749328901329,0.37772918,105960.0,105950.0,0.63985809]
[1749328901621,0.37772921,105960.0,105950.0,0.63985809]
[1749328902478,0.03773002,105960.0,105950.0,0.63985809]
[1749328903234,0.03773,105960.0,105950.0,0.63985809]
[1749328903461,0.03773002,105960.0,105950.0,0.63985809]
[1749328904223,0.03773101,105960.0,105950.0,0.63985809]
[1749328904436,0.03773093,105960.0,105950.0,0.63985809]
[1749328905167,0.02003371,105960.0,105950.0,0.63985809]
[1749328905419,0.03773092,105960.0,105950.0,0.63985809]
[1749328905623,0.0471679,105960.0,105950.0,0.63985809]
[1749328906031,0.0471683,105960.0,105950.0,0.63985809]
[1749328906234,0.0377323,105960.0,105950.0,0.63985809]
[1749328907066,0.0188585,105960.0,105950.0,0.63985809]
[1749328907538,0.02829531,105960.0,105950.0,0.63985809]
[1749328907715,0.0282953,105960.0,105950.0,0.63985809]
[1749328907916,0.02829561,105960.0,105950.0,0.63985809]
[1749328908094,0.0377326,105960.0,105950.0,0.63985809]
[1749328908267,0.01885881,105960.0,105950.0,0.63985809]
[1749328908470,0.02829562,105960.0,105950.0,0.63985809]
[1749328909431,0.01885878,105960.0,105950.0,0.63985809]
[1749328909660,0.02829568,105960.0,105950.0,0.63985809]
[1749328909862,0.03773376,105960.0,105950.0,0.63985809]
[1749328910043,0.03773377,105960.0,105950.0,0.63985809]
[1749328910926,0.02829687,105960.0,105950.0,0.63985809]
[1749328911143,0.03773377,105960.0,105950.0,0.63985809]
[1749328911367,0.02003362,105960.0,105950.0,0.63985809]
[1749328911548,0.03773617,105960.0,105950.0,0.63985809]
[1749328911996,0.03773616,105960.0,105950.0,0.63985809]
[1749328912824,0.02829926,105960.0,105950.0,0.63985809]
[1749328913004,0.03773616,105960.0,105950.0,0.63985809]
[1749328913204,0.02829939,105960.0,105950.0,0.63985809]
[1749328913733,0.03773621,105960.0,105950.0,0.63985809]
[1749328914810,0.0282994,105960.0,105950.0,0.63985809]
[1749328915166,0.02829957,105960.0,105950.0,0.63985809]
[1749328915373,0.02829956,105960.0,105950.0,0.63985809]
[1749328915572,0.01059672,105960.0,105950.0,0.63985809]
[1749328915811,0.02829956,105960.0,105950.0,0.63985809]
[1749328916011,0.01886284,105960.0,105950.0,0.63985809]
[1749328916218,0.02829965,105960.0,105950.0,0.63985809]
[1749328916578,0.02829967,105960.0,105950.0,0.63985809]
[1749328916695,0.01059672,105960.0,105950.0,0.63985809]
[1749328916894,0.01059681,105960.0,105950.0,0.63985809]
[1749328917416,0.01886314,105960.0,105950.0,0.63985809]
[1749328917662,0.02829995,105960.0,105950.0,0.63985809]
[1749328918391,0.01886314,105960.0,105950.0,0.63985809]
[1749328918518,0.01059681,105960.0,105950.0,0.63985809]
[1749328918716,0.01059681,105960.0,105950.0,0.62415809]
[1749328918936,0.02830032,105960.0,105950.0,0.62415809]
[1749328919961,0.01059681,105960.0,105950.0,0.62415809]
[1749328920490,0.02830089,105960.0,105950.0,0.62415809]
[1749328920779,0.01886408,105960.0,105950.0,0.62415809]
[1749328920993,0.02830089,105960.0,105950.0,0.62415809]
[1749328921373,0.0283008,105960.0,105950.0,0.62415809]
[1749328921586,0.01059672,105960.0,105950.0,0.62415809]
[1749328921768,0.02830026,105960.0,105950.0,0.62415809]
[1749328923054,0.02830005,105960.0,105950.0,0.62415809]
[1749328923262,0.01059672,105960.0,105950.0,0.62415809]
[1749328923467,0.0283009,105960.0,105950.0,0.62415809]
[1749328923675,0.01886418,105960.0,105950.0,0.62415809]
[1749328923879,0.02830099,105960.0,105950.0,0.62415809]
[1749328924091,0.01886418,105960.0,105950.0,0.62415809]
[1749328924507,0.0283009,105960.0,105950.0,0.62415809]
[1749328924789,0.00116,105960.0,105950.0,0.62415809]
[1749328925201,0.01886306,105960.0,105950.0,0.62415809]
[1749328925628,0.02829978,105960.0,105950.0,0.62415809]
[1749328926017,0.00116,105960.0,105950.0,0.62415809]
[1749328926474,0.01886236,105960.0,105950.0,0.62415809]
[1749328926721,0.00116,105960.0,105950.0,1.24142789]
[1749328926928,0.01886228,105960.0,105950.0,1.24142789]
[1749328927339,0.01886148,105960.0,105950.0,1.24142789]
[1749328927542,0.01886146,105960.0,105950.0,1.24142789]
[1749328927986,0.01886105,105960.0,105950.0,1.24142789]
[1749328929082,0.01885861,105960.0,105950.0,1.24142789]
[1749328929291,0.01885861,105960.0,105950.0,0.63967809]
[1749328929497,0.01885861,105960.0,105950.0,1.24134789]
[1749328929697,0.01885906,105960.0,105950.0,1.24134789]
[1749328929905,0.01885899,105960.0,105950.0,1.24134789]
[1749328930568,0.01885899,105960.0,105950.0,0.26715809]
[1749328930777,0.01885899,105960.0,105950.0,1.24130789]
[1749328930979,0.01885958,105960.0,105950.0,1.24130789]
[1749328931189,0.00116,105960.0,105950.0,1.24130789]
[1749328931401,0.01885958,105960.0,105950.0,1.24130789]
[1749328931646,0.01885958,105960.0,105950.0,1.22570789]
[1749328931851,0.00116,105960.0,105950.0,1.22570789]
[1749328932054,0.01885946,105960.0,105950.0,1.22570789]
[1749328932471,0.01885945,105960.0,105950.0,1.22570789]
[1749328932672,0.01885945,105960.0,105950.0,0.62403809]
[1749328932875,0.01885978,105960.0,105950.0,0.62403809]
[1749328933081,0.01885978,105960.0,105950.0,1.22570789]
[1749328933288,0.01885977,105960.0,105950.0,1.22570789]
[1749328933707,0.0188597,105960.0,105950.0,1.22570789]
[1749328934617,0.00116,105960.0,105950.0,1.22570789]
[1749328934750,0.01886003,105960.0,105950.0,1.22570789]
[1749328937981,0.01886037,105960.0,105950.0,1.22570789]
[1749328938589,0.02829709,105960.0,105950.0,1.22570789]
[1749328938799,0.01886037,105960.0,105950.0,0.62403809]
[1749328939217,0.00116,105960.0,105950.0,0.62403809]
[1749328939607,0.01886066,105960.0,105950.0,0.62403809]
[1749328939971,0.00116,105960.0,105950.0,0.62403809]
[1749328940392,0.01886066,105960.0,105950.0,0.62403809]
[1749328940819,0.00116,105960.0,105950.0,0.62403809]
[1749328940995,0.01886103,105960.0,105950.0,0.62403809]
[1749328941571,0.00116,105960.0,105950.0,0.62403809]
[1749328941801,0.01886103,105960.0,105950.0,0.62403809]
[1749328942188,0.01886122,105960.0,105950.0,0.62403809]
[1749328942719,0.01886122,105960.0,105950.0,1.22570789]
[1749328943299,0.01886146,105960.0,105950.0,1.22570789]
[1749328944225,0.01886146,105960.0,105950.0,0.62403809]
[1749328944365,0.01886146,105960.0,105950.0,1.22570789]
[1749328944777,0.01886203,105960.0,105950.0,1.22570789]
[1749328944999,0.00116,105960.0,105950.0,1.22570789]
[1749328945366,0.01886203,105960.0,105950.0,1.22570789]
[1749328945581,0.00116,105960.0,105950.0,1.22570789]
[1749328945787,0.01886203,105960.0,105950.0,1.22570789]
[1749328946876,0.00116,105960.0,105950.0,1.22570789]
[1749328947084,0.01886265,105960.0,105950.0,1.22570789]
[1749328947299,0.00116,105960.0,105950.0,1.22570789]
[1749328947514,0.01886265,105960.0,105950.0,1.22570789]
[1749328947714,0.01886265,105960.0,105950.0,0.62403809]
[1749328949686,0.00116,105960.0,105950.0,0.62403809]
[1749328949908,0.02829958,105960.0,105950.0,0.62403809]
[1749328950112,0.02829957,105960.0,105950.0,0.62403809]
[1749328950415,0.01059672,105960.0,105950.0,0.62403809]
[1749328950629,0.02829949,105960.0,105950.0,0.62403809]
[1749328951887,0.0282996,105960.0,105950.0,0.62403809]
[1749328952329,0.02829945,105960.0,105950.0,0.62403809]
[1749328952478,0.07181094,105960.0,105950.0,0.23595809]
[1749328952691,0.06237342,105960.0,105950.0,0.60843809]
[1749328952890,0.06237344,105960.0,105950.0,0.60843809]
[1749328953327,0.06237344,105960.0,105950.0,0.23595809]
[1749328953328,0.02003362,105960.0,105950.0,0.23595809]
[1749328953477,0.07827345,105960.0,105950.0,0.60843809]
[1749328953679,0.07827345,105960.0,105950.0,0.72843809]
[1749328953680,0.08771069,105960.0,105950.0,0.72843809]
[1749328953879,0.06327353,105960.0,105950.0,0.72843809]
[1749328955111,0.05383646,105960.0,105950.0,0.72843809]
[1749328955276,0.06327353,105960.0,105950.0,0.72843809]
[1749328955827,0.06327118,105960.0,105950.0,0.72843809]
[1749328956156,0.04557069,105960.0,105950.0,0.72843809]
[1749328956364,0.06327053,105960.0,105950.0,0.72843809]
[1749328956958,0.06327052,105960.0,105950.0,0.72843809]
[1749328957595,0.06327106,105960.0,105950.0,0.72843809]
[1749328957801,0.04557069,105960.0,105950.0,0.72843809]
[1749328958465,0.06327106,105960.0,105950.0,0.72843809]
[1749328959286,0.06327097,105960.0,105950.0,0.72843809]
[1749328959489,0.04557069,105960.0,105950.0,0.72843809]
[1749328960120,0.06327097,105960.0,105950.0,0.72843809]
[1749328961363,0.04557069,105960.0,105950.0,0.72843809]
[1749328961744,0.06326956,105960.0,105950.0,0.72843809]
[1749328962737,0.07270672,105960.0,105950.0,0.72843809]
[1749328963228,0.07270577,105960.0,105950.0,0.72843809]
[1749328964164,0.06326861,105960.0,105950.0,0.72843809]
[1749328964594,0.07270586,105960.0,105950.0,0.72843809]
[1749328964800,0.05500794,105960.0,105950.0,0.72843809]
[1749328965214,0.07270515,105960.0,105950.0,0.72843809]
[1749328966726,0.04557069,105960.0,105950.0,0.72843809]
[1749328966888,0.06326763,105960.0,105950.0,0.72843809]
[1749328967965,0.06326762,105960.0,105950.0,0.72843809]
[1749328968393,0.03613362,105960.0,105950.0,0.72843809]
[1749328968596,0.07270487,105960.0,105950.0,0.72843809]
[1749328968736,0.06326762,105960.0,105950.0,0.72843809]
[1749328968927,0.06326752,105960.0,105950.0,0.44275809]
[1749328969204,0.06326752,105960.0,105950.0,0.72843809]
[1749328970205,0.06326755,105960.0,105950.0,0.72843809]
[1749328971016,0.06326758,105960.0,105950.0,0.72843809]
[1749328971961,0.0632677,105960.0,105950.0,0.72843809]
[1749328972518,0.06326769,105960.0,105950.0,0.72843809]
[1749328972726,0.05383085,105960.0,105950.0,0.72843809]
[1749328972943,0.06326792,105960.0,105950.0,0.72843809]
[1749328973706,0.06326793,105960.0,105950.0,0.72843809]
[1749328973951,0.06326791,105960.0,105950.0,0.72843809]
[1749328974178,0.04716791,105960.0,105950.0,0.72843809]
[1749328974638,0.02947069,105960.0,105950.0,0.72843809]
[1749328974866,0.0471686,105960.0,105950.0,0.72843809]
[1749328975591,0.02947069,105960.0,105950.0,0.72843809]
[1749328975840,0.05660585,105960.0,105950.0,0.72843809]
[1749328976106,0.03773153,105960.0,105950.0,0.72843809]
[1749328976343,0.0471686,105960.0,105950.0,0.74373809]
[1749328977024,0.04716958,105960.0,105950.0,0.74373809]
[1749328977152,0.02947069,105960.0,105950.0,0.74373809]
[1749328977541,0.04716958,105960.0,105950.0,0.74373809]
[1749328977670,0.03773251,105960.0,105950.0,0.74373809]
[1749328977872,0.04716949,105960.0,105950.0,0.74373809]
[1749328978332,0.0294706,105960.0,105950.0,0.74373809]
[1749328978536,0.04716978,105960.0,105950.0,0.74373809]
[1749328978874,0.0294706,105960.0,105950.0,0.74373809]
[1749328979663,0.04716978,105960.0,105950.0,0.74373809]
[1749328980543,0.04717099,105960.0,105950.0,0.74373809]
[1749328980742,0.0294706,105960.0,105950.0,0.74373809]
[1749328981436,0.047171,105960.0,105950.0,0.74373809]
[1749328981650,0.05660807,105960.0,105950.0,0.74373809]
[1749328982032,0.047171,105960.0,105950.0,0.74373809]
[1749328982214,0.0294706,105960.0,105950.0,0.74373809]
[1749328982423,0.04717329,105960.0,105950.0,0.74373809]
[1749328982601,0.0294706,105960.0,105950.0,0.74373809]
[1749328983398,0.04717923,105960.0,105950.0,0.74373809]
[1749328983896,0.03774225,105960.0,105950.0,0.74373809]
[1749328984305,0.04717922,105960.0,105950.0,0.74373809]
[1749328984485,0.0294706,105960.0,105950.0,0.74373809]
[1749328984701,0.04717924,105960.0,105950.0,0.74373809]
[1749328984931,0.04717923,105960.0,105950.0,0.74373809]
[1749328985560,0.02830535,105960.0,105950.0,0.74373809]
[1749328985760,0.04717914,105960.0,105950.0,0.74373809]
[1749328986254,0.04717915,105960.0,105950.0,0.74373809]
[1749328986581,0.02947051,105960.0,105950.0,0.74373809]
[1749328986828,0.04717916,105960.0,105950.0,0.74373809]
[1749328987880,0.04717915,105960.0,105950.0,0.74373809]
[1749328988208,0.04717916,105960.0,105950.0,0.74373809]
[1749328988384,0.02947051,105960.0,105950.0,0.74373809]
[1749328988589,0.04717916,105960.0,105950.0,0.74373809]
[1749328988843,0.05661632,105960.0,105950.0,0.74373809]
[1749328989045,0.04717916,105960.0,105950.0,0.74373809]
[1749328989934,0.04717915,105960.0,105950.0,0.74373809]
[1749328990146,0.02947051,105960.0,105950.0,0.74373809]